[Event "*** SCC Grand Prix: Titled Tuesday Blitz"]
[Site "Chess.com"]
[Date "2020.08.11"]
[Round "4"]
[White "temus_galaktionov"]
[Black "Kaliopa"]
[Result "1-0"]
[WhiteElo "2664"]
[BlackElo "2189"]
[TimeControl "180+1"]
[EndTime "10:40:18 PDT"]
[Termination "temus_galaktionov won by resignation"]

1. d4 {[%clk 0:03:00.9]} 1... d5 {[%clk 0:02:59.6]} 2. Nf3 {[%clk 0:03:01.8]}
2... Nf6 {[%clk 0:02:59.3]} 3. c4 {[%clk 0:02:59]} 3... dxc4 {[%clk 0:03:00.2]}
4. e3 {[%clk 0:02:58.3]} 4... Bg4 {[%clk 0:03:00.6]} 5. Bxc4 {[%clk 0:02:54.5]}
5... e6 {[%clk 0:03:00.8]} 6. h3 {[%clk 0:02:53.9]} 6... Bh5 {[%clk 0:03:01]} 7.
O-O {[%clk 0:02:51]} 7... a6 {[%clk 0:03:01.4]} 8. a4 {[%clk 0:02:30.8]} 8...
Bd6 {[%clk 0:02:59.3]} 9. Nc3 {[%clk 0:02:26]} 9... Nc6 {[%clk 0:02:59.3]} 10.
Qe2 {[%clk 0:02:25.3]} 10... O-O {[%clk 0:02:57.4]} 11. Rd1 {[%clk 0:02:25.8]}
11... Re8 {[%clk 0:02:54.6]} 12. e4 {[%clk 0:02:22.2]} 12... Bxf3 {[%clk
0:02:43.6]} 13. Qxf3 {[%clk 0:02:20.8]} 13... e5 {[%clk 0:02:32]} 14. d5 {[%clk
0:02:14.1]} 14... Na7 {[%clk 0:02:31.1]} 15. Be3 {[%clk 0:02:12.6]} 15... Qe7
{[%clk 0:02:25.3]} 16. Rac1 {[%clk 0:02:09.3]} 16... Nd7 {[%clk 0:02:15.3]} 17.
Bf1 {[%clk 0:01:51.2]} 17... Bc5 {[%clk 0:02:10.6]} 18. Na2 {[%clk 0:01:49.4]}
18... Bxe3 {[%clk 0:02:05.8]} 19. Qxe3 {[%clk 0:01:50.3]} 19... c6 {[%clk
0:01:57.5]} 20. d6 {[%clk 0:01:41.2]} 20... Qf6 {[%clk 0:01:53.9]} 21. a5 {[%clk
0:01:38.9]} 21... Re6 {[%clk 0:01:44.8]} 22. Qb3 {[%clk 0:01:32.8]} 22... Nb5
{[%clk 0:01:35.8]} 23. Bxb5 {[%clk 0:01:30.7]} 23... axb5 {[%clk 0:01:36.7]} 24.
Qb4 {[%clk 0:01:30.5]} 24... Qd8 {[%clk 0:01:33.5]} 25. Nc3 {[%clk 0:01:18.5]}
25... Rxa5 {[%clk 0:01:24]} 26. Ne2 {[%clk 0:01:03]} 26... Ra4 {[%clk
0:01:22.4]} 27. Qb3 {[%clk 0:00:58.5]} 27... h6 {[%clk 0:01:17.5]} 28. Ng3
{[%clk 0:00:58.1]} 28... Nf6 {[%clk 0:01:11.4]} 29. f3 {[%clk 0:00:55.6]} 29...
Rxd6 {[%clk 0:01:10.5]} 30. Nf5 {[%clk 0:00:53.4]} 30... Rxd1+ {[%clk
0:01:06.5]} 31. Rxd1 {[%clk 0:00:54.3]} 31... Qb6+ {[%clk 0:01:03.8]} 32. Kh2
{[%clk 0:00:53]} 32... c5 {[%clk 0:00:56.1]} 33. Rd6 {[%clk 0:00:47.2]} 33...
Qa5 {[%clk 0:00:52.8]} 34. Qd3 {[%clk 0:00:45.6]} 34... Kh7 {[%clk 0:00:48.7]}
35. Rd8 {[%clk 0:00:43.6]} 35... Rd4 {[%clk 0:00:44.5]} 36. Rxd4 {[%clk
0:00:43.4]} 36... cxd4 {[%clk 0:00:43.6]} 37. Nd6 {[%clk 0:00:44.3]} 37... Qb4
{[%clk 0:00:33.3]} 38. Nxf7 {[%clk 0:00:43.4]} 38... Qxb2 {[%clk 0:00:33.1]} 39.
Nxe5 {[%clk 0:00:43.3]} 39... Qb4 {[%clk 0:00:29.4]} 40. f4 {[%clk 0:00:41.5]}
40... Qe7 {[%clk 0:00:22.4]} 41. Qxd4 {[%clk 0:00:39.7]} 41... b4 {[%clk
0:00:21.7]} 42. Qc4 {[%clk 0:00:35.2]} 42... Qd6 {[%clk 0:00:15.1]} 43. Nd3
{[%clk 0:00:32.5]} 43... Nd7 {[%clk 0:00:14]} 44. e5 {[%clk 0:00:31.8]} 44...
Qc6 {[%clk 0:00:13.3]} 45. Qxc6 {[%clk 0:00:27.6]} 45... bxc6 {[%clk 0:00:14.2]}
46. Nxb4 {[%clk 0:00:28.1]} 46... c5 {[%clk 0:00:14.1]} 47. Nd5 {[%clk
0:00:28.2]} 47... Kg8 {[%clk 0:00:14.9]} 48. Kg3 {[%clk 0:00:27.8]} 48... Kf7
{[%clk 0:00:14.6]} 49. Kf3 {[%clk 0:00:28.4]} 49... Ke6 {[%clk 0:00:15.1]} 50.
Ke4 {[%clk 0:00:28.9]} 50... c4 {[%clk 0:00:14.9]} 51. f5+ {[%clk 0:00:27.9]}
51... Kf7 {[%clk 0:00:12.6]} 52. Kd4 {[%clk 0:00:28.1]} 52... Nf8 {[%clk
0:00:11.8]} 53. Kxc4 {[%clk 0:00:27.3]} 53... Ke8 {[%clk 0:00:11.5]} 54. Kd4
{[%clk 0:00:26]} 54... Nd7 {[%clk 0:00:11.9]} 55. g4 {[%clk 0:00:26.1]} 55...
Nb8 {[%clk 0:00:11.3]} 56. Nf4 {[%clk 0:00:26.5]} 56... Nc6+ {[%clk 0:00:11.8]}
57. Kd5 {[%clk 0:00:27]} 57... Ne7+ {[%clk 0:00:12.7]} 58. Ke6 {[%clk
0:00:26.8]} 58... Nc6 {[%clk 0:00:12.7]} 59. Nh5 {[%clk 0:00:26.1]} 59... Nd4+
{[%clk 0:00:13.3]} 60. Kd5 {[%clk 0:00:26.1]} 60... Nf3 {[%clk 0:00:13]} 61.
Nxg7+ {[%clk 0:00:26.1]} 61... Kf7 {[%clk 0:00:13.2]} 62. Nh5 {[%clk 0:00:27]}
62... Ng1 {[%clk 0:00:12.3]} 63. Nf4 {[%clk 0:00:27.3]} 63... Nxh3 {[%clk
0:00:12.8]} 1-0

[Event "*** SCC Grand Prix: Titled Tuesday Blitz"]
[Site "Chess.com"]
[Date "2020.08.11"]
[Round "4"]
[White "kakarot_001"]
[Black "QuintilianoR"]
[Result "1-0"]
[WhiteElo "2830"]
[BlackElo "2645"]
[TimeControl "180+1"]
[EndTime "10:40:20 PDT"]
[Termination "kakarot_001 won on time"]

1. d4 {[%clk 0:03:00.9]} 1... Nf6 {[%clk 0:02:58.8]} 2. c4 {[%clk 0:02:59.9]}
2... e6 {[%clk 0:02:59]} 3. Nf3 {[%clk 0:02:55.2]} 3... b6 {[%clk 0:02:58]} 4.
g3 {[%clk 0:02:54.3]} 4... Bb7 {[%clk 0:02:57.6]} 5. Bg2 {[%clk 0:02:54.8]} 5...
Bb4+ {[%clk 0:02:57.1]} 6. Bd2 {[%clk 0:02:53.6]} 6... a5 {[%clk 0:02:56.3]} 7.
O-O {[%clk 0:02:53]} 7... O-O {[%clk 0:02:56.2]} 8. Nc3 {[%clk 0:02:46.4]} 8...
d6 {[%clk 0:02:54.5]} 9. Qc2 {[%clk 0:02:45.6]} 9... Nbd7 {[%clk 0:02:52]} 10.
Nb1 {[%clk 0:02:41.8]} 10... Be4 {[%clk 0:02:47]} 11. Qc1 {[%clk 0:02:41.4]}
11... Qb8 {[%clk 0:02:27.2]} 12. a3 {[%clk 0:02:34.8]} 12... Bxd2 {[%clk
0:02:26]} 13. Nbxd2 {[%clk 0:02:35.7]} 13... Bb7 {[%clk 0:02:18.4]} 14. Qc2
{[%clk 0:02:33.7]} 14... a4 {[%clk 0:02:11.1]} 15. e4 {[%clk 0:02:32.5]} 15...
e5 {[%clk 0:02:10.9]} 16. Rfe1 {[%clk 0:02:23.3]} 16... Re8 {[%clk 0:02:05.3]}
17. Rad1 {[%clk 0:02:17.4]} 17... exd4 {[%clk 0:01:59.3]} 18. Nxd4 {[%clk
0:02:16.6]} 18... Nc5 {[%clk 0:01:59.2]} 19. f3 {[%clk 0:02:12.7]} 19... Nfd7
{[%clk 0:01:26.5]} 20. Nb1 {[%clk 0:02:09.3]} 20... Ne5 {[%clk 0:01:22.9]} 21.
h3 {[%clk 0:02:02.4]} 21... Qd8 {[%clk 0:01:13.4]} 22. f4 {[%clk 0:02:00.3]}
22... Nc6 {[%clk 0:01:07.7]} 23. Nc3 {[%clk 0:01:54.7]} 23... Nxd4 {[%clk
0:01:04.6]} 24. Rxd4 {[%clk 0:01:55.6]} 24... Qf6 {[%clk 0:01:02.5]} 25. Qf2
{[%clk 0:01:43.9]} 25... Qe6 {[%clk 0:00:39.3]} 26. g4 {[%clk 0:01:34.9]} 26...
Qf6 {[%clk 0:00:31.6]} 27. g5 {[%clk 0:01:21.8]} 27... Qe7 {[%clk 0:00:31]} 28.
h4 {[%clk 0:01:16.1]} 28... f6 {[%clk 0:00:30.4]} 29. Qg3 {[%clk 0:00:59.1]}
29... fxg5 {[%clk 0:00:28.2]} 30. hxg5 {[%clk 0:01:00]} 30... Qf7 {[%clk
0:00:18.9]} 31. Nd5 {[%clk 0:00:51]} 31... Ne6 {[%clk 0:00:17.9]} 32. Rd3 {[%clk
0:00:42.9]} 32... Bxd5 {[%clk 0:00:17.7]} 33. cxd5 {[%clk 0:00:43.2]} 33... Nxf4
{[%clk 0:00:17.7]} 34. Rf3 {[%clk 0:00:43]} 34... Rf8 {[%clk 0:00:17.6]} 35. Qf2
{[%clk 0:00:08.2]} 35... Rae8 {[%clk 0:00:10.9]} 36. Qd2 {[%clk 0:00:06.5]}
36... Re5 {[%clk 0:00:09.7]} 37. Ref1 {[%clk 0:00:04.1]} 37... Rxe4 {[%clk
0:00:09.7]} 38. R3f2 {[%clk 0:00:04.4]} 38... Rc4 {[%clk 0:00:08.3]} 39. Qe3
{[%clk 0:00:03.8]} 39... b5 {[%clk 0:00:08.7]} 40. Bh3 {[%clk 0:00:03.6]} 40...
h6 {[%clk 0:00:08.8]} 41. Be6 {[%clk 0:00:01.6]} 41... Nxe6 {[%clk 0:00:06.8]}
42. Rxf7 {[%clk 0:00:02.5]} 42... Rg4+ {[%clk 0:00:05.4]} 43. Kh2 {[%clk
0:00:01.5]} 43... Rh4+ {[%clk 0:00:05.5]} 44. Kg3 {[%clk 0:00:02.1]} 44... Rxf7
{[%clk 0:00:06]} 45. dxe6 {[%clk 0:00:02.4]} 45... Rxf1 {[%clk 0:00:04.6]} 46.
Kxh4 {[%clk 0:00:03]} 46... hxg5+ {[%clk 0:00:04.8]} 47. Kg3 {[%clk 0:00:03.1]}
1-0

[Event "*** SCC Grand Prix: Titled Tuesday Blitz"]
[Site "Chess.com"]
[Date "2020.08.11"]
[Round "4"]
[White "olksuna"]
[Black "AttilaTurzo"]
[Result "1-0"]
[WhiteElo "2637"]
[BlackElo "2452"]
[TimeControl "180+1"]
[EndTime "10:40:22 PDT"]
[Termination "olksuna won on time"]

1. Nf3 {[%clk 0:03:00.9]} 1... Nf6 {[%clk 0:02:59.3]} 2. g3 {[%clk 0:03:01.3]}
2... g6 {[%clk 0:02:58.9]} 3. b4 {[%clk 0:03:01.6]} 3... Bg7 {[%clk 0:02:58.4]}
4. Bb2 {[%clk 0:03:02.3]} 4... O-O {[%clk 0:02:58]} 5. Bg2 {[%clk 0:03:02.9]}
5... d5 {[%clk 0:02:58.2]} 6. O-O {[%clk 0:03:02.8]} 6... c6 {[%clk 0:02:56.7]}
7. d3 {[%clk 0:03:03]} 7... a5 {[%clk 0:02:54.7]} 8. a3 {[%clk 0:03:03.3]} 8...
axb4 {[%clk 0:02:55.2]} 9. axb4 {[%clk 0:03:04.2]} 9... Rxa1 {[%clk 0:02:55.5]}
10. Bxa1 {[%clk 0:03:04.5]} 10... Qb6 {[%clk 0:02:43.7]} 11. c3 {[%clk
0:03:04.4]} 11... Nbd7 {[%clk 0:02:41.4]} 12. Nbd2 {[%clk 0:03:03.7]} 12... e5
{[%clk 0:02:40.5]} 13. e4 {[%clk 0:03:02.8]} 13... Re8 {[%clk 0:02:39.9]} 14.
Qc2 {[%clk 0:03:01.8]} 14... Qc7 {[%clk 0:02:24.9]} 15. c4 {[%clk 0:02:57.6]}
15... Qd6 {[%clk 0:02:07.3]} 16. Rb1 {[%clk 0:02:35.8]} 16... d4 {[%clk
0:02:01]} 17. c5 {[%clk 0:02:34.2]} 17... Qc7 {[%clk 0:01:58.2]} 18. Nc4 {[%clk
0:02:34.3]} 18... Bf8 {[%clk 0:01:50.7]} 19. Bh3 {[%clk 0:02:20.8]} 19... b5
{[%clk 0:01:41.2]} 20. cxb6 {[%clk 0:02:11.9]} 20... Nxb6 {[%clk 0:01:41.3]} 21.
Bxc8 {[%clk 0:02:09.7]} 21... Nxc8 {[%clk 0:01:25.4]} 22. Ncxe5 {[%clk
0:01:58.6]} 22... Rxe5 {[%clk 0:01:24.1]} 23. Nxe5 {[%clk 0:01:59.5]} 23... Qxe5
{[%clk 0:01:24.6]} 24. Qxc6 {[%clk 0:02:00.1]} 24... Na7 {[%clk 0:01:16.2]} 25.
Qa8 {[%clk 0:01:08.1]} 25... Nb5 {[%clk 0:01:14.7]} 26. Rc1 {[%clk 0:01:07.2]}
26... Kg7 {[%clk 0:01:09.4]} 27. Kg2 {[%clk 0:00:42.4]} 27... Bxb4 {[%clk
0:01:01.3]} 28. Rb1 {[%clk 0:00:42.1]} 28... Bc3 {[%clk 0:00:47.9]} 29. Qc6
{[%clk 0:00:36.5]} 29... Na3 {[%clk 0:00:39.9]} 30. Rc1 {[%clk 0:00:33.1]} 30...
Nb5 {[%clk 0:00:36.2]} 31. Rb1 {[%clk 0:00:30.3]} 31... Nc7 {[%clk 0:00:29]} 32.
Rc1 {[%clk 0:00:20.6]} 32... Bxa1 {[%clk 0:00:24.9]} 33. Qxc7 {[%clk 0:00:20.5]}
33... Qxc7 {[%clk 0:00:23]} 34. Rxc7 {[%clk 0:00:21.4]} 34... Kf8 {[%clk
0:00:14.6]} 35. f4 {[%clk 0:00:17.5]} 35... Bc3 {[%clk 0:00:13.3]} 36. Kf3
{[%clk 0:00:17.2]} 36... h5 {[%clk 0:00:13.1]} 37. h3 {[%clk 0:00:16.8]} 37...
Ne8 {[%clk 0:00:12]} 38. Ra7 {[%clk 0:00:16.1]} 38... Nd6 {[%clk 0:00:11.7]} 39.
g4 {[%clk 0:00:15.2]} 39... hxg4+ {[%clk 0:00:11.4]} 40. hxg4 {[%clk 0:00:16.1]}
40... Nb5 {[%clk 0:00:11.9]} 41. Rb7 {[%clk 0:00:14.5]} 41... Nd6 {[%clk
0:00:11.9]} 42. Ra7 {[%clk 0:00:14.4]} 42... Nb5 {[%clk 0:00:12]} 43. Rb7 {[%clk
0:00:12.7]} 43... Nd6 {[%clk 0:00:12.2]} 44. Rb8+ {[%clk 0:00:13.6]} 44... Ke7
{[%clk 0:00:12.1]} 45. e5 {[%clk 0:00:14]} 45... Ne8 {[%clk 0:00:11.1]} 46. Ke4
{[%clk 0:00:14.3]} 46... Bd2 {[%clk 0:00:10]} 47. Rb7+ {[%clk 0:00:11.7]} 47...
Kf8 {[%clk 0:00:09.5]} 48. f5 {[%clk 0:00:12.2]} 48... gxf5+ {[%clk 0:00:09.3]}
49. gxf5 {[%clk 0:00:13.1]} 49... Bc3 {[%clk 0:00:10]} 50. f6 {[%clk 0:00:12.8]}
50... Ba1 {[%clk 0:00:06.9]} 51. Rb8 {[%clk 0:00:12.9]} 51... Bc3 {[%clk
0:00:04.1]} 52. Kf5 {[%clk 0:00:13.1]} 52... Ba1 {[%clk 0:00:03.3]} 53. e6
{[%clk 0:00:13.4]} 53... fxe6+ {[%clk 0:00:03.2]} 54. Kxe6 {[%clk 0:00:13.9]}
54... Bc3 {[%clk 0:00:01.9]} 55. f7 {[%clk 0:00:14.3]} 1-0

[Event "*** SCC Grand Prix: Titled Tuesday Blitz"]
[Site "Chess.com"]
[Date "2020.08.11"]
[Round "4"]
[White "Gerodot71"]
[Black "MestreSoares"]
[Result "1-0"]
[WhiteElo "2401"]
[BlackElo "2158"]
[TimeControl "180+1"]
[EndTime "10:40:22 PDT"]
[Termination "Gerodot71 won on time"]

1. d4 {[%clk 0:03:00.9]} 1... Nf6 {[%clk 0:02:58.8]} 2. c4 {[%clk 0:03:00.2]}
2... c5 {[%clk 0:02:55.6]} 3. d5 {[%clk 0:03:00.3]} 3... e5 {[%clk 0:02:55]} 4.
Nc3 {[%clk 0:02:55.5]} 4... d6 {[%clk 0:02:54.3]} 5. e4 {[%clk 0:02:54.1]} 5...
Be7 {[%clk 0:02:54.7]} 6. f3 {[%clk 0:02:44]} 6... Nbd7 {[%clk 0:02:53.1]} 7.
Be3 {[%clk 0:02:42.7]} 7... Nf8 {[%clk 0:02:52.8]} 8. Bd3 {[%clk 0:02:32.8]}
8... Ng6 {[%clk 0:02:52]} 9. g3 {[%clk 0:02:32.8]} 9... h5 {[%clk 0:02:49.7]}
10. h4 {[%clk 0:02:31.3]} 10... Bd7 {[%clk 0:02:45.9]} 11. Nge2 {[%clk
0:02:30.3]} 11... a6 {[%clk 0:02:42.7]} 12. Qd2 {[%clk 0:02:19.7]} 12... Qa5
{[%clk 0:02:40.2]} 13. Kf2 {[%clk 0:01:45.2]} 13... Qb4 {[%clk 0:01:46.3]} 14.
a3 {[%clk 0:01:43]} 14... Qa5 {[%clk 0:01:44.1]} 15. b4 {[%clk 0:01:40.9]} 15...
Qc7 {[%clk 0:01:35.8]} 16. Rhb1 {[%clk 0:01:35.6]} 16... b6 {[%clk 0:01:34.6]}
17. Rb2 {[%clk 0:01:32.8]} 17... O-O {[%clk 0:01:33.3]} 18. Rab1 {[%clk
0:01:31.1]} 18... Rfb8 {[%clk 0:01:31.7]} 19. Rb3 {[%clk 0:01:30]} 19... Be8
{[%clk 0:01:27.6]} 20. Nc1 {[%clk 0:01:16.1]} 20... Nd7 {[%clk 0:01:25.4]} 21.
Bf1 {[%clk 0:01:15.5]} 21... Ngf8 {[%clk 0:01:20]} 22. Bh3 {[%clk 0:01:14.9]}
22... f6 {[%clk 0:01:16.5]} 23. Qe2 {[%clk 0:01:10.2]} 23... Bf7 {[%clk
0:01:15.4]} 24. R3b2 {[%clk 0:01:07.9]} 24... a5 {[%clk 0:01:12.3]} 25. Nb5
{[%clk 0:01:00.1]} 25... Qd8 {[%clk 0:01:08.3]} 26. Nd3 {[%clk 0:00:59.4]} 26...
axb4 {[%clk 0:01:05.6]} 27. axb4 {[%clk 0:01:00.3]} 27... Kh7 {[%clk 0:00:58.6]}
28. Kg2 {[%clk 0:00:56.8]} 28... Ra4 {[%clk 0:00:46.1]} 29. Ra2 {[%clk
0:00:51.2]} 29... Rba8 {[%clk 0:00:44.5]} 30. Rba1 {[%clk 0:00:50.9]} 30... Rxa2
{[%clk 0:00:41.1]} 31. Rxa2 {[%clk 0:00:51.8]} 31... Rxa2 {[%clk 0:00:38.7]} 32.
Qxa2 {[%clk 0:00:49.7]} 32... Qb8 {[%clk 0:00:37.4]} 33. Qa6 {[%clk 0:00:46.8]}
33... Be8 {[%clk 0:00:33.9]} 34. Bf2 {[%clk 0:00:39.5]} 34... g6 {[%clk
0:00:32.9]} 35. Be3 {[%clk 0:00:38.7]} 35... Kg7 {[%clk 0:00:32.5]} 36. g4
{[%clk 0:00:38.1]} 36... hxg4 {[%clk 0:00:31.6]} 37. fxg4 {[%clk 0:00:39]} 37...
Nh7 {[%clk 0:00:21.4]} 38. Kg3 {[%clk 0:00:37.7]} 38... Ndf8 {[%clk 0:00:21]}
39. Bf1 {[%clk 0:00:36.2]} 39... Bxb5 {[%clk 0:00:19.9]} 40. cxb5 {[%clk
0:00:36.2]} 40... Kf7 {[%clk 0:00:19.1]} 41. bxc5 {[%clk 0:00:34.1]} 41... dxc5
{[%clk 0:00:18.8]} 42. Nb2 {[%clk 0:00:34.4]} 42... Nd7 {[%clk 0:00:15.5]} 43.
Nc4 {[%clk 0:00:34.2]} 43... Bd6 {[%clk 0:00:16]} 44. Qa2 {[%clk 0:00:32.7]}
44... Nhf8 {[%clk 0:00:16]} 45. Bd3 {[%clk 0:00:31.7]} 45... Ke7 {[%clk
0:00:15.8]} 46. Qa1 {[%clk 0:00:28.4]} 46... Qb7 {[%clk 0:00:14.2]} 47. Qa2
{[%clk 0:00:26]} 47... Nb8 {[%clk 0:00:12.6]} 48. g5 {[%clk 0:00:25.9]} 48...
Nbd7 {[%clk 0:00:10.3]} 49. Qg2 {[%clk 0:00:24.4]} 49... Kf7 {[%clk 0:00:08.4]}
50. Qf3 {[%clk 0:00:24]} 50... Qa7 {[%clk 0:00:07.3]} 51. h5 {[%clk 0:00:23.7]}
51... Be7 {[%clk 0:00:05.6]} 52. h6 {[%clk 0:00:22]} 52... Nh7 {[%clk
0:00:04.4]} 53. d6 {[%clk 0:00:20.9]} 53... Bd8 {[%clk 0:00:04.1]} 54. Qg4
{[%clk 0:00:21.1]} 54... fxg5 {[%clk 0:00:01.2]} 55. Na3 {[%clk 0:00:19]} 1-0

[Event "*** SCC Grand Prix: Titled Tuesday Blitz"]
[Site "Chess.com"]
[Date "2020.08.11"]
[Round "4"]
[White "Alomaterapia"]
[Black "Xeslu"]
[Result "1-0"]
[WhiteElo "2527"]
[BlackElo "2300"]
[TimeControl "180+1"]
[EndTime "10:40:23 PDT"]
[Termination "Alomaterapia won on time"]

1. d4 {[%clk 0:03:00.9]} 1... d5 {[%clk 0:02:57.3]} 2. c4 {[%clk 0:03:00.7]}
2... c6 {[%clk 0:02:57.5]} 3. Nf3 {[%clk 0:03:00.6]} 3... Nf6 {[%clk 0:02:57.9]}
4. Nc3 {[%clk 0:03:01.1]} 4... e6 {[%clk 0:02:58.1]} 5. e3 {[%clk 0:02:59.9]}
5... Nbd7 {[%clk 0:02:57.7]} 6. Qc2 {[%clk 0:03:00.1]} 6... Bd6 {[%clk
0:02:56.6]} 7. Be2 {[%clk 0:03:00.3]} 7... O-O {[%clk 0:02:55.4]} 8. O-O {[%clk
0:03:00]} 8... Qe7 {[%clk 0:02:55.4]} 9. e4 {[%clk 0:03:00.1]} 9... dxe4 {[%clk
0:02:55.1]} 10. Nxe4 {[%clk 0:03:00.3]} 10... Nxe4 {[%clk 0:02:55.5]} 11. Qxe4
{[%clk 0:03:00.8]} 11... f5 {[%clk 0:02:54.9]} 12. Qc2 {[%clk 0:02:57.3]} 12...
Nf6 {[%clk 0:02:54.3]} 13. c5 {[%clk 0:02:40.7]} 13... Bc7 {[%clk 0:02:53.8]}
14. Ne5 {[%clk 0:02:40.9]} 14... Nd5 {[%clk 0:02:44.2]} 15. Bc4 {[%clk
0:02:40.8]} 15... Qf6 {[%clk 0:02:42.1]} 16. Re1 {[%clk 0:02:40.3]} 16... Rd8
{[%clk 0:02:30.4]} 17. Bd2 {[%clk 0:02:35.7]} 17... Bd7 {[%clk 0:02:30.4]} 18.
Qb3 {[%clk 0:02:28.3]} 18... Rab8 {[%clk 0:02:27.2]} 19. Qg3 {[%clk 0:02:27.1]}
19... h6 {[%clk 0:02:20.7]} 20. b4 {[%clk 0:02:26.3]} 20... Be8 {[%clk
0:02:03.8]} 21. a3 {[%clk 0:02:26.4]} 21... Bxe5 {[%clk 0:02:03.9]} 22. Qxe5
{[%clk 0:02:21.5]} 22... Qxe5 {[%clk 0:01:43.9]} 23. Rxe5 {[%clk 0:02:21.2]}
23... Bf7 {[%clk 0:01:44.6]} 24. Rc1 {[%clk 0:02:12.7]} 24... Rd7 {[%clk
0:01:42.3]} 25. f3 {[%clk 0:02:10.1]} 25... Rbd8 {[%clk 0:01:42.4]} 26. Be1
{[%clk 0:02:10.4]} 26... Nc7 {[%clk 0:01:33.7]} 27. Bh4 {[%clk 0:02:07.5]} 27...
g5 {[%clk 0:01:32.8]} 28. Bf2 {[%clk 0:02:07.6]} 28... a6 {[%clk 0:01:22.4]} 29.
h4 {[%clk 0:02:06.9]} 29... Kg7 {[%clk 0:01:20.2]} 30. Rce1 {[%clk 0:02:04.1]}
30... Kf6 {[%clk 0:01:11]} 31. g4 {[%clk 0:02:00.4]} 31... f4 {[%clk 0:00:59.3]}
32. Kg2 {[%clk 0:01:58.1]} 32... Rxd4 {[%clk 0:00:54.7]} 33. hxg5+ {[%clk
0:01:54.7]} 33... hxg5 {[%clk 0:00:54.2]} 34. Bxd4 {[%clk 0:01:54.6]} 34... Rxd4
{[%clk 0:00:54.3]} 35. Bf1 {[%clk 0:01:51.8]} 35... Nd5 {[%clk 0:00:50.5]} 36.
Kf2 {[%clk 0:01:46.9]} 36... Rd2+ {[%clk 0:00:46.9]} 37. R5e2 {[%clk 0:01:45.4]}
37... Rd4 {[%clk 0:00:40.2]} 38. Rc2 {[%clk 0:01:45.3]} 38... Ne3 {[%clk
0:00:38.7]} 39. Rxe3 {[%clk 0:01:45]} 39... fxe3+ {[%clk 0:00:38.6]} 40. Kxe3
{[%clk 0:01:45.6]} 40... e5 {[%clk 0:00:39.3]} 41. Bd3 {[%clk 0:01:42.8]} 41...
Bg6 {[%clk 0:00:36.1]} 42. Bxg6 {[%clk 0:01:40.5]} 42... Kxg6 {[%clk 0:00:37]}
43. Rc1 {[%clk 0:01:39.2]} 43... Kf6 {[%clk 0:00:35.7]} 44. Rb1 {[%clk
0:01:38.1]} 44... Ke6 {[%clk 0:00:35.1]} 45. Rh1 {[%clk 0:01:35.8]} 45... Rc4
{[%clk 0:00:34.3]} 46. Kd3 {[%clk 0:01:34.9]} 46... Rf4 {[%clk 0:00:33.7]} 47.
Ke2 {[%clk 0:01:34.2]} 47... e4 {[%clk 0:00:31.5]} 48. fxe4 {[%clk 0:01:31.4]}
48... Rxe4+ {[%clk 0:00:31.7]} 49. Kf3 {[%clk 0:01:31.7]} 49... Rc4 {[%clk
0:00:31.6]} 50. Rh7 {[%clk 0:01:27.4]} 50... Rc3+ {[%clk 0:00:26.7]} 51. Kf2
{[%clk 0:01:27.7]} 51... Rxa3 {[%clk 0:00:26.6]} 52. Rxb7 {[%clk 0:01:27.6]}
52... a5 {[%clk 0:00:27.1]} 53. b5 {[%clk 0:01:22.3]} 53... cxb5 {[%clk
0:00:26.5]} 54. c6 {[%clk 0:01:21.2]} 54... b4 {[%clk 0:00:19.8]} 55. Rb5 {[%clk
0:01:20.5]} 55... Rc3 {[%clk 0:00:19.8]} 56. Rxa5 {[%clk 0:01:17.1]} 56... Kf6
{[%clk 0:00:19.2]} 57. Ra6 {[%clk 0:01:14.5]} 57... Ke5 {[%clk 0:00:19.6]} 58.
Rb6 {[%clk 0:01:14.3]} 58... Kf4 {[%clk 0:00:18.4]} 59. Rxb4+ {[%clk 0:01:14.1]}
59... Ke5 {[%clk 0:00:19]} 60. Rb6 {[%clk 0:01:10.9]} 60... Kf6 {[%clk
0:00:19.9]} 61. c7+ {[%clk 0:01:10.3]} 61... Ke7 {[%clk 0:00:19.9]} 62. Rb7
{[%clk 0:01:10.1]} 62... Kd7 {[%clk 0:00:19.3]} 63. Rb5 {[%clk 0:01:09.2]} 63...
Kc8 {[%clk 0:00:19.5]} 64. Rxg5 {[%clk 0:01:09.2]} 64... Kxc7 {[%clk 0:00:19.9]}
65. Rd5 {[%clk 0:01:08.4]} 65... Kc6 {[%clk 0:00:20]} 66. Rd8 {[%clk 0:01:06.5]}
66... Kc7 {[%clk 0:00:19.9]} 67. Rd4 {[%clk 0:01:03.5]} 67... Kc6 {[%clk
0:00:18.8]} 68. g5 {[%clk 0:01:03.9]} 68... Rc5 {[%clk 0:00:18.6]} 69. Rg4
{[%clk 0:01:00.8]} 69... Kd6 {[%clk 0:00:18.8]} 70. g6 {[%clk 0:01:01.2]} 70...
Ke6 {[%clk 0:00:18.1]} 71. g7 {[%clk 0:01:01.6]} 71... Rc2+ {[%clk 0:00:18.6]}
72. Ke3 {[%clk 0:01:01.4]} 72... Rc8 {[%clk 0:00:19.5]} 73. g8=Q+ {[%clk
0:01:00.5]} 1-0